[Event "Late-Titled-Tuesday-Blitz-January-23-2024"]
[Site "Chess.com"]
[Date "2024.01.23"]
[Round "9"]
[White "Yurovskykh_Oleksandr"]
[Black "AlexOstrovskiy"]
[Result "1/2-1/2"]
[WhiteElo "2623"]
[BlackElo "2763"]
[TimeControl "180+1"]
[EndTime "15:42:48 PST"]
[Termination "Game drawn by repetition"]

1. d4 {[%clk 0:02:54.9]} 1... Nf6 {[%clk 0:02:56]} 2. Nf3 {[%clk 0:02:54.7]}
2... c5 {[%clk 0:02:53.8]} 3. c3 {[%clk 0:02:54.3]} 3... d5 {[%clk 0:02:53.1]}
4. Bf4 {[%clk 0:02:53]} 4... Nc6 {[%clk 0:02:52.6]} 5. e3 {[%clk 0:02:52.2]}
5... Qb6 {[%clk 0:02:52.7]} 6. Qc2 {[%clk 0:02:50]} 6... Nh5 {[%clk 0:02:50.5]}
7. Bg5 {[%clk 0:02:45.9]} 7... h6 {[%clk 0:02:50.6]} 8. Bh4 {[%clk 0:02:46.2]}
8... g5 {[%clk 0:02:50.8]} 9. Bg3 {[%clk 0:02:46.8]} 9... Nxg3 {[%clk
0:02:49.4]} 10. hxg3 {[%clk 0:02:47.7]} 10... Bg7 {[%clk 0:02:49.9]} 11. Nbd2
{[%clk 0:02:47.6]} 11... e6 {[%clk 0:02:42.9]} 12. Qb3 {[%clk 0:02:27.2]} 12...
Bd7 {[%clk 0:02:35.1]} 13. Qxb6 {[%clk 0:02:19.3]} 13... axb6 {[%clk 0:02:36]}
14. a3 {[%clk 0:02:20]} 14... e5 {[%clk 0:02:26.7]} 15. dxe5 {[%clk 0:02:19.6]}
15... Nxe5 {[%clk 0:02:27.6]} 16. Nxe5 {[%clk 0:02:19.7]} 16... Bxe5 {[%clk
0:02:28.5]} 17. Bd3 {[%clk 0:02:19.7]} 17... f5 {[%clk 0:02:17.4]} 18. f4 {[%clk
0:02:16.4]} 18... Bf6 {[%clk 0:02:14.1]} 19. Nf3 {[%clk 0:02:14.7]} 19... Kf7
{[%clk 0:01:48]} 20. Kf2 {[%clk 0:02:13.7]} 20... Kg7 {[%clk 0:01:44]} 21. Rad1
{[%clk 0:02:11.5]} 21... Be6 {[%clk 0:01:36.5]} 22. Rd2 {[%clk 0:02:10.4]} 22...
Rae8 {[%clk 0:01:31.8]} 23. Rhd1 {[%clk 0:02:09.2]} 23... Re7 {[%clk 0:01:29.6]}
24. Bb1 {[%clk 0:01:44.6]} 24... Rhe8 {[%clk 0:01:18.8]} 25. Ba2 {[%clk
0:01:44.7]} 25... d4 {[%clk 0:00:46.7]} 26. Bxe6 {[%clk 0:01:45.6]} 26... dxe3+
{[%clk 0:00:47]} 27. Kxe3 {[%clk 0:01:45.1]} 27... Rxe6+ {[%clk 0:00:47.9]} 28.
Kf2 {[%clk 0:01:44.7]} 28... b5 {[%clk 0:00:45.3]} 29. Re1 {[%clk 0:01:38.3]}
29... Rxe1 {[%clk 0:00:27.9]} 30. Nxe1 {[%clk 0:01:39.2]} 30... gxf4 {[%clk
0:00:28.6]} 31. gxf4 {[%clk 0:01:39.2]} 31... Bh4+ {[%clk 0:00:29.3]} 32. g3
{[%clk 0:01:31.5]} 32... Bxg3+ {[%clk 0:00:29.5]} 33. Kxg3 {[%clk 0:01:32.4]}
33... Rxe1 {[%clk 0:00:29.7]} 34. Rd7+ {[%clk 0:01:32.6]} 34... Kg6 {[%clk
0:00:16.6]} 35. Rxb7 {[%clk 0:01:32.3]} 35... Re3+ {[%clk 0:00:09.1]} 36. Kf2
{[%clk 0:01:29.7]} 36... Rd3 {[%clk 0:00:04.1]} 37. Rxb5 {[%clk 0:01:23.9]}
37... c4 {[%clk 0:00:04.6]} 38. a4 {[%clk 0:01:19]} 38... Rd1 {[%clk 0:00:03.1]}
39. Rb4 {[%clk 0:01:14.3]} 39... Rb1 {[%clk 0:00:03.4]} 40. a5 {[%clk 0:01:14]}
40... Ra1 {[%clk 0:00:03.6]} 41. Rxc4 {[%clk 0:01:13.3]} 41... Rxa5 {[%clk
0:00:04.2]} 42. b4 {[%clk 0:01:10.8]} 42... Ra2+ {[%clk 0:00:04.5]} 43. Kg3
{[%clk 0:01:10.2]} 43... Rb2 {[%clk 0:00:05.4]} 44. Rc5 {[%clk 0:01:09.8]} 44...
Rb3 {[%clk 0:00:05.8]} 45. b5 {[%clk 0:01:07.9]} 45... Rb1 {[%clk 0:00:05.3]}
46. c4 {[%clk 0:01:03.2]} 46... Rg1+ {[%clk 0:00:05.2]} 47. Kf2 {[%clk
0:01:03.1]} 47... Rb1 {[%clk 0:00:05.6]} 48. Rc6+ {[%clk 0:01:01.4]} 48... Kh5
{[%clk 0:00:06.1]} 49. b6 {[%clk 0:01:01.9]} 49... Kg4 {[%clk 0:00:06.4]} 50. c5
{[%clk 0:00:56.5]} 50... Kxf4 {[%clk 0:00:07.3]} 51. Rc7 {[%clk 0:00:53.6]}
51... Rb2+ {[%clk 0:00:07.6]} 52. Kg1 {[%clk 0:00:36.8]} 52... Kf3 {[%clk
0:00:05.5]} 53. b7 {[%clk 0:00:35.5]} 53... f4 {[%clk 0:00:06]} 54. c6 {[%clk
0:00:33.8]} 54... Rb1+ {[%clk 0:00:06.9]} 55. Kh2 {[%clk 0:00:33.9]} 55... Rb2+
{[%clk 0:00:07.8]} 56. Kh3 {[%clk 0:00:20]} 56... Rb1 {[%clk 0:00:08.7]} 57. Kh2
{[%clk 0:00:16.9]} 57... Rb2+ {[%clk 0:00:09.2]} 58. Kg1 {[%clk 0:00:17.4]}
58... Rb1+ {[%clk 0:00:09.6]} 59. Kh2 {[%clk 0:00:18]} 1/2-1/2

[Event "Late-Titled-Tuesday-Blitz-January-23-2024"]
[Site "Chess.com"]
[Date "2024.01.23"]
[Round "9"]
[White "yaguigor"]
[Black "OneTrickPony_82"]
[Result "0-1"]
[WhiteElo "2614"]
[BlackElo "2505"]
[TimeControl "180+1"]
[EndTime "15:42:51 PST"]
[Termination "OneTrickPony_82 won by checkmate"]

1. Nf3 {[%clk 0:02:54]} 1... Nf6 {[%clk 0:02:59.5]} 2. c4 {[%clk 0:02:52.6]}
2... c5 {[%clk 0:02:57.9]} 3. Nc3 {[%clk 0:02:51.2]} 3... e6 {[%clk 0:02:56.3]}
4. d4 {[%clk 0:02:50.1]} 4... d5 {[%clk 0:02:53]} 5. cxd5 {[%clk 0:02:49.2]}
5... exd5 {[%clk 0:02:51.2]} 6. g3 {[%clk 0:02:47]} 6... Nc6 {[%clk 0:02:49.7]}
7. Bg2 {[%clk 0:02:47.1]} 7... cxd4 {[%clk 0:02:50.2]} 8. Nxd4 {[%clk
0:02:46.2]} 8... Bc5 {[%clk 0:02:50.8]} 9. Nb3 {[%clk 0:02:44.3]} 9... Bb6
{[%clk 0:02:50.2]} 10. Nxd5 {[%clk 0:02:39.4]} 10... Be6 {[%clk 0:02:49.2]} 11.
Nxb6 {[%clk 0:02:30.9]} 11... Qxd1+ {[%clk 0:02:46.2]} 12. Kxd1 {[%clk
0:02:30.2]} 12... axb6 {[%clk 0:02:46.1]} 13. Nd2 {[%clk 0:02:01.6]} 13... Bxa2
{[%clk 0:02:22.1]} 14. Bxc6+ {[%clk 0:01:56.8]} 14... bxc6 {[%clk 0:02:20.8]}
15. Kc2 {[%clk 0:01:55.7]} 15... Nd5 {[%clk 0:02:00.7]} 16. b3 {[%clk
0:01:51.2]} 16... O-O {[%clk 0:01:47.4]} 17. Kb2 {[%clk 0:01:46]} 17... Nb4
{[%clk 0:01:46.3]} 18. Nc4 {[%clk 0:01:37.1]} 18... Rfe8 {[%clk 0:01:18.9]} 19.
Be3 {[%clk 0:01:31]} 19... b5 {[%clk 0:01:16.2]} 20. Na3 {[%clk 0:01:25.6]}
20... Ra6 {[%clk 0:00:45.3]} 21. Nc2 {[%clk 0:00:58.4]} 21... Nxc2 {[%clk
0:00:40.9]} 22. Kxc2 {[%clk 0:00:58.6]} 22... Rea8 {[%clk 0:00:39.1]} 23. Bd4
{[%clk 0:00:30.3]} 23... Ra3 {[%clk 0:00:36.6]} 24. b4 {[%clk 0:00:27.7]} 24...
Bb3+ {[%clk 0:00:30]} 25. Kd2 {[%clk 0:00:26.5]} 25... Ra2+ {[%clk 0:00:27.4]}
26. Rxa2 {[%clk 0:00:22]} 26... Rxa2+ {[%clk 0:00:27.9]} 27. Ke3 {[%clk
0:00:20.4]} 27... Bc4 {[%clk 0:00:28.4]} 28. Re1 {[%clk 0:00:20.6]} 28... f6
{[%clk 0:00:28.8]} 29. f4 {[%clk 0:00:18.8]} 29... Kf7 {[%clk 0:00:26.1]} 30.
Kf3 {[%clk 0:00:18.6]} 30... Ra3+ {[%clk 0:00:23]} 31. Kf2 {[%clk 0:00:18.3]}
31... Rb3 {[%clk 0:00:23]} 32. Bc5 {[%clk 0:00:17.5]} 32... Rb2 {[%clk
0:00:23.1]} 33. h4 {[%clk 0:00:16.3]} 33... Ke6 {[%clk 0:00:22.8]} 34. Kf3
{[%clk 0:00:16.3]} 34... f5 {[%clk 0:00:17]} 35. e4 {[%clk 0:00:15.6]} 35...
Rb3+ {[%clk 0:00:12.9]} 36. Kf2 {[%clk 0:00:15.4]} 36... fxe4 {[%clk 0:00:12.1]}
37. Rxe4+ {[%clk 0:00:14.7]} 37... Kf7 {[%clk 0:00:10.1]} 38. Re5 {[%clk
0:00:14]} 38... h6 {[%clk 0:00:09.6]} 39. h5 {[%clk 0:00:13.5]} 39... Rb2+
{[%clk 0:00:09.5]} 40. Ke3 {[%clk 0:00:13.3]} 40... Re2+ {[%clk 0:00:08.7]} 41.
Kd4 {[%clk 0:00:12]} 41... Rxe5 {[%clk 0:00:09.2]} 42. Kxe5 {[%clk 0:00:12.1]}
42... Bd5 {[%clk 0:00:09.5]} 43. g4 {[%clk 0:00:11.8]} 43... Bf3 {[%clk
0:00:09.4]} 44. Kf5 {[%clk 0:00:11.7]} 44... Be2 {[%clk 0:00:09.4]} 45. Bd4
{[%clk 0:00:11.1]} 45... Bd1 {[%clk 0:00:08.9]} 46. Be5 {[%clk 0:00:10.8]} 46...
Be2 {[%clk 0:00:08.8]} 47. Bc3 {[%clk 0:00:10.5]} 47... Bd1 {[%clk 0:00:08.9]}
48. Bd4 {[%clk 0:00:10.3]} 48... Be2 {[%clk 0:00:08.8]} 49. Bb2 {[%clk
0:00:10.1]} 49... Bd1 {[%clk 0:00:08.4]} 50. Ba1 {[%clk 0:00:09.7]} 50... Be2
{[%clk 0:00:08.1]} 51. Be5 {[%clk 0:00:09.4]} 51... Bd3# {[%clk 0:00:08]} 0-1

[Event "Late-Titled-Tuesday-Blitz-January-23-2024"]
[Site "Chess.com"]
[Date "2024.01.23"]
[Round "9"]
[White "Goryachkina"]
[Black "mightysmasher"]
[Result "1-0"]
[WhiteElo "2691"]
[BlackElo "2572"]
[TimeControl "180+1"]
[EndTime "15:42:52 PST"]
[Termination "Goryachkina won on time"]

1. e4 {[%clk 0:02:59.9]} 1... e6 {[%clk 0:02:40.4]} 2. d4 {[%clk 0:02:58.4]}
2... d5 {[%clk 0:02:39.6]} 3. Nc3 {[%clk 0:02:58.4]} 3... dxe4 {[%clk
0:02:39.5]} 4. Nxe4 {[%clk 0:02:58.3]} 4... Nd7 {[%clk 0:02:39.8]} 5. g3 {[%clk
0:02:55.8]} 5... Ngf6 {[%clk 0:02:40]} 6. Nxf6+ {[%clk 0:02:55.7]} 6... Nxf6
{[%clk 0:02:40]} 7. Bg2 {[%clk 0:02:55.9]} 7... Bd6 {[%clk 0:02:40.1]} 8. Ne2
{[%clk 0:02:51.6]} 8... O-O {[%clk 0:02:40]} 9. O-O {[%clk 0:02:51.7]} 9... c6
{[%clk 0:02:40.1]} 10. c4 {[%clk 0:02:40.9]} 10... Re8 {[%clk 0:02:39.6]} 11. h3
{[%clk 0:02:37.9]} 11... Bd7 {[%clk 0:02:36.8]} 12. Bf4 {[%clk 0:02:26.8]} 12...
Bxf4 {[%clk 0:02:35.8]} 13. Nxf4 {[%clk 0:02:27.1]} 13... Qc7 {[%clk 0:02:32.8]}
14. Nd3 {[%clk 0:02:22.4]} 14... Rad8 {[%clk 0:02:30.6]} 15. Qb3 {[%clk
0:01:42.8]} 15... b6 {[%clk 0:02:25.1]} 16. Rad1 {[%clk 0:01:41.9]} 16... Bc8
{[%clk 0:02:24]} 17. Qc3 {[%clk 0:01:40.2]} 17... Bb7 {[%clk 0:02:23.2]} 18. c5
{[%clk 0:01:37.9]} 18... Nd5 {[%clk 0:02:21]} 19. Qa3 {[%clk 0:01:36.7]} 19...
b5 {[%clk 0:02:08.6]} 20. Ne5 {[%clk 0:01:32.3]} 20... a5 {[%clk 0:02:05.3]} 21.
Qf3 {[%clk 0:01:29.8]} 21... f6 {[%clk 0:01:58.7]} 22. Nd3 {[%clk 0:01:27.1]}
22... b4 {[%clk 0:01:57.7]} 23. Rfe1 {[%clk 0:01:26.4]} 23... Ba6 {[%clk
0:01:55.7]} 24. Nf4 {[%clk 0:01:26.1]} 24... Nxf4 {[%clk 0:01:54.3]} 25. gxf4
{[%clk 0:01:26.2]} 25... Bc4 {[%clk 0:01:50.6]} 26. Qxc6 {[%clk 0:01:17.4]}
26... Qxf4 {[%clk 0:01:40.7]} 27. d5 {[%clk 0:01:08.8]} 27... Rc8 {[%clk
0:01:16]} 28. Qa4 {[%clk 0:01:08]} 28... Qg5 {[%clk 0:01:05.4]} 29. d6 {[%clk
0:01:02.6]} 29... Red8 {[%clk 0:00:54.3]} 30. c6 {[%clk 0:00:58.3]} 30... Qc5
{[%clk 0:00:28.8]} 31. d7 {[%clk 0:00:40.9]} 31... Rc7 {[%clk 0:00:26.8]} 32.
Rc1 {[%clk 0:00:33.9]} 32... Kf7 {[%clk 0:00:14.6]} 33. Qc2 {[%clk 0:00:32.5]}
33... Rxc6 {[%clk 0:00:10.9]} 34. Bxc6 {[%clk 0:00:32.1]} 34... Qg5+ {[%clk
0:00:11]} 35. Bg2 {[%clk 0:00:26.8]} 35... Bd5 {[%clk 0:00:10.8]} 36. f4 {[%clk
0:00:26.7]} 36... Qg3 {[%clk 0:00:09.9]} 37. Qf2 {[%clk 0:00:25.7]} 37... Qg6
{[%clk 0:00:09.4]} 38. Rc7 {[%clk 0:00:22.2]} 38... Bxg2 {[%clk 0:00:09.2]} 39.
Qxg2 {[%clk 0:00:22.1]} 39... Qd3 {[%clk 0:00:09.5]} 40. Qe2 {[%clk 0:00:20.7]}
40... Qd4+ {[%clk 0:00:08.7]} 41. Qe3 {[%clk 0:00:20.1]} 41... Qd6 {[%clk
0:00:09.2]} 42. Rb7 {[%clk 0:00:18.1]} 42... Qc6 {[%clk 0:00:08.3]} 43. Rb6
{[%clk 0:00:17]} 43... Qxd7 {[%clk 0:00:06.4]} 44. Rxe6 {[%clk 0:00:17]} 44...
Kf8 {[%clk 0:00:03]} 45. Qc5+ {[%clk 0:00:14.9]} 45... Kg8 {[%clk 0:00:01.4]}
46. Re7 {[%clk 0:00:15.1]} 46... Qxh3 {[%clk 0:00:01.8]} 47. Qc4+ {[%clk
0:00:13.3]} 1-0

[Event "Late-Titled-Tuesday-Blitz-January-23-2024"]
[Site "Chess.com"]
[Date "2024.01.23"]
[Round "9"]
[White "TheMagician"]
[Black "Walter_White_Poland"]
[Result "1-0"]
[WhiteElo "2153"]
[BlackElo "2309"]
[TimeControl "180+1"]
[EndTime "15:42:55 PST"]
[Termination "TheMagician won on time"]

1. d4 {[%clk 0:03:00.9]} 1... d5 {[%clk 0:02:51.4]} 2. c4 {[%clk 0:02:59.9]}
2... e6 {[%clk 0:02:51.6]} 3. Nf3 {[%clk 0:02:58.7]} 3... Nf6 {[%clk 0:02:51.5]}
4. Nc3 {[%clk 0:02:57.9]} 4... Be7 {[%clk 0:02:51.4]} 5. Bg5 {[%clk 0:02:57.1]}
5... O-O {[%clk 0:02:50.3]} 6. e3 {[%clk 0:02:57.2]} 6... h6 {[%clk 0:02:47.5]}
7. Bh4 {[%clk 0:02:56.2]} 7... Ne4 {[%clk 0:02:45.5]} 8. Bxe7 {[%clk 0:02:55.7]}
8... Qxe7 {[%clk 0:02:45]} 9. Qc2 {[%clk 0:02:55.3]} 9... Nxc3 {[%clk
0:02:12.3]} 10. Qxc3 {[%clk 0:02:55.3]} 10... c5 {[%clk 0:02:05.2]} 11. dxc5
{[%clk 0:02:47.2]} 11... Qxc5 {[%clk 0:02:02.6]} 12. a3 {[%clk 0:02:32.7]} 12...
dxc4 {[%clk 0:01:58.4]} 13. Qxc4 {[%clk 0:02:31]} 13... Nd7 {[%clk 0:01:35.2]}
14. Rc1 {[%clk 0:02:13.8]} 14... Qxc4 {[%clk 0:01:34.5]} 15. Bxc4 {[%clk
0:02:12.6]} 15... Nb6 {[%clk 0:01:34.4]} 16. O-O {[%clk 0:01:57]} 16... Nxc4
{[%clk 0:01:32]} 17. Rxc4 {[%clk 0:01:56.5]} 17... Bd7 {[%clk 0:01:31.8]} 18.
Rc7 {[%clk 0:01:53]} 18... Bc6 {[%clk 0:01:30.3]} 19. Rc1 {[%clk 0:01:50.7]}
19... Rfc8 {[%clk 0:01:20.6]} 20. Rxc8+ {[%clk 0:01:49.1]} 20... Rxc8 {[%clk
0:01:21.5]} 21. Ne5 {[%clk 0:01:33.5]} 21... Bd7 {[%clk 0:01:16.6]} 22. Rxc8+
{[%clk 0:01:31.9]} 22... Bxc8 {[%clk 0:01:16.3]} 23. Nc4 {[%clk 0:01:31.4]}
23... Bd7 {[%clk 0:01:07.6]} 24. f3 {[%clk 0:01:25.7]} 24... f6 {[%clk
0:01:04.6]} 25. Kf2 {[%clk 0:01:24.1]} 25... Kf8 {[%clk 0:01:03]} 26. e4 {[%clk
0:01:14.5]} 26... e5 {[%clk 0:01:00.1]} 27. Ne3 {[%clk 0:01:06.8]} 27... Ke7
{[%clk 0:00:50.7]} 28. b4 {[%clk 0:01:03.3]} 28... Kd6 {[%clk 0:00:49.5]} 29.
Ke1 {[%clk 0:01:03]} 29... a5 {[%clk 0:00:36.7]} 30. Kd2 {[%clk 0:01:02.6]}
30... axb4 {[%clk 0:00:35.1]} 31. axb4 {[%clk 0:01:02.3]} 31... Kc6 {[%clk
0:00:18]} 32. Kc3 {[%clk 0:00:57.4]} 32... Kb5 {[%clk 0:00:17.2]} 33. Nc4 {[%clk
0:00:45.4]} 33... Bc6 {[%clk 0:00:12.5]} 34. Nd6+ {[%clk 0:00:43.2]} 34... Ka4
{[%clk 0:00:11.3]} 35. Nf5 {[%clk 0:00:42.8]} 35... Bb5 {[%clk 0:00:03.9]} 36.
Nxg7 {[%clk 0:00:32.7]} 36... Bf1 {[%clk 0:00:03.8]} 37. g3 {[%clk 0:00:20.7]}
37... Bg2 {[%clk 0:00:03.8]} 38. Nh5 {[%clk 0:00:20.8]} 38... Bxf3 {[%clk
0:00:03.2]} 39. Nxf6 {[%clk 0:00:21.1]} 39... Kb5 {[%clk 0:00:02.2]} 40. g4
{[%clk 0:00:20.9]} 40... Kc6 {[%clk 0:00:01.9]} 41. h4 {[%clk 0:00:21]} 41...
Kd6 {[%clk 0:00:01.6]} 42. g5 {[%clk 0:00:20.9]} 42... hxg5 {[%clk 0:00:02.3]}
43. hxg5 {[%clk 0:00:21]} 43... Ke6 {[%clk 0:00:02.8]} 44. Kc4 {[%clk
0:00:20.5]} 44... Kf7 {[%clk 0:00:02.4]} 45. Kc5 {[%clk 0:00:19.8]} 45... Kg6
{[%clk 0:00:02.4]} 46. Kd5 {[%clk 0:00:16.4]} 46... Kxg5 {[%clk 0:00:02]} 47.
Kxe5 {[%clk 0:00:16.7]} 47... Be2 {[%clk 0:00:02.1]} 48. Ne8 {[%clk 0:00:16.1]}
48... Bb5 {[%clk 0:00:01.3]} 49. Nd6 {[%clk 0:00:15.9]} 49... Bc6 {[%clk
0:00:01.2]} 50. b5 {[%clk 0:00:16.4]} 50... Bd7 {[%clk 0:00:01.4]} 51. Kd5
{[%clk 0:00:14.9]} 1-0

[Event "Late-Titled-Tuesday-Blitz-January-23-2024"]
[Site "Chess.com"]
[Date "2024.01.23"]
[Round "9"]
[White "ansko1999"]
[Black "Zq1"]
[Result "1-0"]
[WhiteElo "2715"]
[BlackElo "2495"]
[TimeControl "180+1"]
[EndTime "15:42:57 PST"]
[Termination "ansko1999 won on time"]

1. d4 {[%clk 0:03:00.9]} 1... Nf6 {[%clk 0:02:59.2]} 2. c4 {[%clk 0:03:00.5]}
2... a6 {[%clk 0:02:59.4]} 3. g3 {[%clk 0:02:56.3]} 3... c5 {[%clk 0:02:57.9]}
4. Nf3 {[%clk 0:02:46.2]} 4... cxd4 {[%clk 0:02:57]} 5. Nxd4 {[%clk 0:02:46.5]}
5... Nc6 {[%clk 0:02:48.2]} 6. Bg2 {[%clk 0:02:39.5]} 6... Nxd4 {[%clk
0:02:46.1]} 7. Qxd4 {[%clk 0:02:40.4]} 7... g6 {[%clk 0:02:45.8]} 8. Nc3 {[%clk
0:02:35.1]} 8... Bg7 {[%clk 0:02:44.8]} 9. O-O {[%clk 0:02:34.8]} 9... O-O
{[%clk 0:02:44.1]} 10. Qd3 {[%clk 0:02:32.5]} 10... d6 {[%clk 0:02:42.7]} 11.
Rd1 {[%clk 0:02:30.4]} 11... Bf5 {[%clk 0:02:39.5]} 12. e4 {[%clk 0:02:23.4]}
12... Be6 {[%clk 0:02:36.3]} 13. b3 {[%clk 0:02:16]} 13... b5 {[%clk 0:02:30]}
14. cxb5 {[%clk 0:02:03.3]} 14... axb5 {[%clk 0:02:29.1]} 15. Bb2 {[%clk
0:01:29.1]} 15... b4 {[%clk 0:02:25.3]} 16. Ne2 {[%clk 0:01:13.4]} 16... Rb8
{[%clk 0:02:18.2]} 17. h3 {[%clk 0:01:01.7]} 17... Bd7 {[%clk 0:02:13]} 18. Nd4
{[%clk 0:00:50.5]} 18... Qb6 {[%clk 0:02:07.4]} 19. g4 {[%clk 0:00:33.7]} 19...
Rfd8 {[%clk 0:02:03.5]} 20. Nc2 {[%clk 0:00:22.2]} 20... Bb5 {[%clk 0:01:10]}
21. Qd4 {[%clk 0:00:16.9]} 21... Qxd4 {[%clk 0:00:59.5]} 22. Bxd4 {[%clk
0:00:17.8]} 22... Ba6 {[%clk 0:00:49.8]} 23. Rac1 {[%clk 0:00:16.8]} 23... Nd7
{[%clk 0:00:38.4]} 24. Bxg7 {[%clk 0:00:15]} 24... Kxg7 {[%clk 0:00:38.6]} 25.
Nd4 {[%clk 0:00:15.1]} 25... Bb7 {[%clk 0:00:37.9]} 26. Rc4 {[%clk 0:00:12.5]}
26... Ba8 {[%clk 0:00:36.9]} 27. Rdc1 {[%clk 0:00:12.4]} 27... Nc5 {[%clk
0:00:35.1]} 28. Nc2 {[%clk 0:00:10.8]} 28... Nd3 {[%clk 0:00:27.9]} 29. Ra1
{[%clk 0:00:10]} 29... Rdc8 {[%clk 0:00:25.5]} 30. Ne3 {[%clk 0:00:07.5]} 30...
Rxc4 {[%clk 0:00:23.3]} 31. Nxc4 {[%clk 0:00:08.2]} 31... Nc5 {[%clk 0:00:21.7]}
32. f3 {[%clk 0:00:07.5]} 32... Bb7 {[%clk 0:00:19.9]} 33. Bf1 {[%clk
0:00:07.7]} 33... Ba6 {[%clk 0:00:17.8]} 34. Kf2 {[%clk 0:00:07.6]} 34... Bxc4
{[%clk 0:00:15.7]} 35. Bxc4 {[%clk 0:00:08.5]} 35... g5 {[%clk 0:00:15.6]} 36.
a4 {[%clk 0:00:07.1]} 36... bxa3 {[%clk 0:00:14.7]} 37. Rxa3 {[%clk 0:00:07.8]}
37... Kf6 {[%clk 0:00:14.2]} 38. Ke3 {[%clk 0:00:08]} 38... e6 {[%clk
0:00:12.1]} 39. Ra7 {[%clk 0:00:07]} 39... h6 {[%clk 0:00:08.5]} 40. Ra3 {[%clk
0:00:03.6]} 40... Rb7 {[%clk 0:00:07.2]} 41. Kd4 {[%clk 0:00:02.2]} 41... Ke7
{[%clk 0:00:06.6]} 42. Kc3 {[%clk 0:00:02.5]} 42... Nd7 {[%clk 0:00:06.5]} 43.
Ra6 {[%clk 0:00:02.7]} 43... Ne5 {[%clk 0:00:06.2]} 44. Ra8 {[%clk 0:00:02.9]}
44... Nxf3 {[%clk 0:00:06.1]} 45. Rh8 {[%clk 0:00:03.6]} 45... Ne5 {[%clk
0:00:06.2]} 46. Rxh6 {[%clk 0:00:03.8]} 46... Ra7 {[%clk 0:00:06.1]} 47. Rh7
{[%clk 0:00:03.5]} 47... Kf6 {[%clk 0:00:05.2]} 48. Rh6+ {[%clk 0:00:03.6]}
48... Kg7 {[%clk 0:00:04.5]} 49. Rh5 {[%clk 0:00:04.1]} 49... f6 {[%clk
0:00:02.9]} 50. Bxe6 {[%clk 0:00:04.4]} 50... Ra1 {[%clk 0:00:02.3]} 51. Bf5
{[%clk 0:00:04.8]} 51... Rc1+ {[%clk 0:00:01.7]} 52. Kb4 {[%clk 0:00:05.2]}
52... Rb1 {[%clk 0:00:01.5]} 53. Rh7+ {[%clk 0:00:04.9]} 1-0

[Event "Late-Titled-Tuesday-Blitz-January-23-2024"]
[Site "Chess.com"]
[Date "2024.01.23"]
[Round "9"]
[White "sansanathalia"]
[Black "olawsson"]
[Result "1-0"]
[WhiteElo "2388"]
[BlackElo "2169"]
[TimeControl "180+1"]
[EndTime "15:42:57 PST"]
[Termination "sansanathalia won on time"]

1. e4 {[%clk 0:03:00.9]} 1... c5 {[%clk 0:02:59.3]} 2. Nf3 {[%clk 0:03:00.3]}
2... a6 {[%clk 0:02:58]} 3. g3 {[%clk 0:02:56.8]} 3... b5 {[%clk 0:02:56.2]} 4.
Bg2 {[%clk 0:02:54.9]} 4... Bb7 {[%clk 0:02:56.8]} 5. d3 {[%clk 0:02:52.4]} 5...
g6 {[%clk 0:02:55.9]} 6. O-O {[%clk 0:02:49.9]} 6... Bg7 {[%clk 0:02:55.9]} 7.
c3 {[%clk 0:02:48.8]} 7... e6 {[%clk 0:02:54.5]} 8. Re1 {[%clk 0:02:44.2]} 8...
Ne7 {[%clk 0:02:54]} 9. b3 {[%clk 0:02:40.2]} 9... O-O {[%clk 0:02:37.9]} 10.
Bb2 {[%clk 0:02:37.7]} 10... d5 {[%clk 0:02:38.1]} 11. exd5 {[%clk 0:02:36]}
11... Nxd5 {[%clk 0:02:36.2]} 12. Qc2 {[%clk 0:02:35.5]} 12... Nc6 {[%clk
0:02:27.9]} 13. Nbd2 {[%clk 0:02:32.3]} 13... Qb6 {[%clk 0:02:02.4]} 14. Ne4
{[%clk 0:02:28.9]} 14... Rfd8 {[%clk 0:02:00.5]} 15. Rad1 {[%clk 0:02:26.7]}
15... Rac8 {[%clk 0:01:43]} 16. h4 {[%clk 0:02:06.7]} 16... h6 {[%clk
0:01:38.3]} 17. Nh2 {[%clk 0:01:52]} 17... f5 {[%clk 0:01:25.4]} 18. Nd2 {[%clk
0:01:48.6]} 18... Ncb4 {[%clk 0:01:01.1]} 19. cxb4 {[%clk 0:01:42.1]} 19... cxb4
{[%clk 0:01:01.4]} 20. Nc4 {[%clk 0:01:29.5]} 20... Bxb2 {[%clk 0:00:37.6]} 21.
Qxb2 {[%clk 0:01:11.3]} 21... bxc4 {[%clk 0:00:37.8]} 22. dxc4 {[%clk 0:01:08]}
22... Nc3 {[%clk 0:00:37.1]} 23. Rc1 {[%clk 0:00:51.5]} 23... Bxg2 {[%clk
0:00:32.2]} 24. Kxg2 {[%clk 0:00:51.1]} 24... Rd3 {[%clk 0:00:28.5]} 25. Qc2
{[%clk 0:00:49.1]} 25... Rcd8 {[%clk 0:00:27.1]} 26. Nf1 {[%clk 0:00:44.8]}
26... Qc6+ {[%clk 0:00:24.5]} 27. Kg1 {[%clk 0:00:43.3]} 27... Qf3 {[%clk
0:00:22.9]} 28. Rxe6 {[%clk 0:00:41.6]} 28... Kf7 {[%clk 0:00:12.3]} 29. Rce1
{[%clk 0:00:38]} 29... Ne4 {[%clk 0:00:12.4]} 30. R6xe4 {[%clk 0:00:24]} 30...
fxe4 {[%clk 0:00:10.8]} 31. Qc1 {[%clk 0:00:19.3]} 31... Kg7 {[%clk 0:00:08.9]}
32. Qb2+ {[%clk 0:00:18.1]} 32... Kh7 {[%clk 0:00:08.1]} 33. Qe5 {[%clk
0:00:16.9]} 33... Qf5 {[%clk 0:00:06.7]} 34. Qe7+ {[%clk 0:00:15.8]} 34... Kh8
{[%clk 0:00:05.7]} 35. Rxe4 {[%clk 0:00:16.1]} 35... R3d7 {[%clk 0:00:04.5]} 36.
Qe5+ {[%clk 0:00:12.2]} 36... Qxe5 {[%clk 0:00:04.4]} 37. Rxe5 {[%clk
0:00:13.1]} 37... Rd1 {[%clk 0:00:04.3]} 38. Kg2 {[%clk 0:00:12.7]} 38... Ra1
{[%clk 0:00:03.6]} 39. Ra5 {[%clk 0:00:12.4]} 39... Rd6 {[%clk 0:00:03.8]} 40.
Ne3 {[%clk 0:00:11.8]} 40... Rf6 {[%clk 0:00:03.8]} 41. Ng4 {[%clk 0:00:10.8]}
41... Rd6 {[%clk 0:00:02.6]} 42. Nxh6 {[%clk 0:00:10.4]} 42... Kh7 {[%clk
0:00:03.1]} 43. Ng4 {[%clk 0:00:10.3]} 43... Rd2 {[%clk 0:00:03.1]} 44. Rxa6
{[%clk 0:00:10.1]} 44... Raxa2 {[%clk 0:00:03.4]} 45. Rb6 {[%clk 0:00:07.9]}
45... Rdb2 {[%clk 0:00:02.8]} 46. Rxb4 {[%clk 0:00:07.8]} 46... Ra3 {[%clk
0:00:03.5]} 47. Rb7+ {[%clk 0:00:07.6]} 47... Kg8 {[%clk 0:00:03.1]} 48. c5
{[%clk 0:00:07.6]} 48... Raxb3 {[%clk 0:00:02.3]} 49. Rd7 {[%clk 0:00:07.9]}
49... Rc3 {[%clk 0:00:01.5]} 50. Nf6+ {[%clk 0:00:05.5]} 50... Kf8 {[%clk
0:00:01.1]} 51. Ne4 {[%clk 0:00:04]} 1-0